fUST/lending_fUST_20251230
["ID","MTS","AMOUNT","RATE_DAILY","PERIOD"]
[400091829,1767089034807,-800.0,0.00048,120]
[400091830,1767089034836,-300.0,0.00048,120]
[400091831,1767089034865,-1167.0,0.00048,120]
[400091832,1767089034893,-168.20910426,0.00048,120]
[400091833,1767089034923,-885.01,0.00048,30]
[400091834,1767089034955,-999.0,0.00048219,120]
[400091835,1767089034984,-200.0,0.00048346,120]
[400091836,1767089035016,-1065.69382455,0.000484,60]
[400091837,1767089035047,-152.0,0.00048409,120]
[400091838,1767089035078,-200.0,0.00048433,120]
[400091839,1767089035111,-200.0,0.0004859,120]
[400091840,1767089035141,-200.0,0.0004884,120]
[400091841,1767089035171,-6059.20216935,0.00049,120]
[400091842,1767089035200,-2040.0,0.00049,120]
[400091843,1767089035230,-200.0,0.00049,120]
[400091844,1767089035260,-1000.0,0.00049,120]
[400091845,1767089035292,-999.0,0.00049315,120]
[400091846,1767089035323,-338.78614381,0.00049315,120]
[400091847,1767089035357,-200.0,0.00049404,120]
[400091848,1767089035389,-200.0,0.00049404,120]
[400091849,1767089035421,-200.0,0.00049404,120]
[400091850,1767089035454,-989.50083922,0.0004943,120]
[400091851,1767089035485,-200.0,0.00049471,120]
[400091852,1767089035516,-200.0,0.00049471,120]
[400091853,1767089035547,-200.0,0.00049471,120]
[400091854,1767089035578,-200.0,0.00049477,120]
[400091855,1767089035608,-100000.0,0.000495,110]
[400091856,1767089035639,-200.0,0.0004953,120]
[400091857,1767089035671,-816.78713798,0.000496,120]
[400091858,1767089035703,-632.3,0.00049613,30]
[400091859,1767089035735,-586.89,0.00049613,120]
[400091860,1767089035765,-676.29,0.00049613,120]
[400091861,1767089035796,-2893.56,0.00049613,120]
[400091862,1767089035826,-113633.93052749,0.00049898,120]
[400091863,1767089035857,-1000.0,0.00049999,120]
[400091864,1767089035887,-65050.62244618,0.00049999,120]
[400091865,1767089035919,-1085.00090167,0.0005,120]
[400091866,1767089035949,-989.67432142,0.0005,120]
[400091867,1767089035979,-2517.66062402,0.0005,120]
[400091868,1767089036010,-556.01662597,0.0005,120]
[400091869,1767089036040,-186.25911896,0.0005,30]
[400091870,1767089036072,-1780.86291202,0.0005,120]
[400091871,1767089036102,-987.71121683,0.0005,120]
[400091872,1767089036134,-2379.2053678,0.0005,120]
[400091873,1767089036163,-270.10539258,0.0005,120]
[400091874,1767089036193,-751.61043255,0.0005,120]
[400091875,1767089036223,-2999.999999,0.0005,120]
[400091876,1767089036254,-1000.0,0.0005,120]
[400091877,1767089036285,-1000.0,0.0005,120]
[400091878,1767089036317,-300.0,0.0005,120]
[400091879,1767089036348,-4998.92847765,0.0005,120]
[400091880,1767089036385,-2324.0,0.0005,120]
[400091881,1767089036420,-529.93323027,0.0005,120]
[400091882,1767089036454,-203.89416334,0.0005,120]
[400091883,1767089036487,-6000.0,0.0005,120]
[400091884,1767089036520,-103282.24985156,0.0005,120]
[400091885,1767089036553,-5189.90964171,0.0005,120]
[400091886,1767089036587,-200.0,0.0005,120]
[400091887,1767089036623,-200.0,0.00050263,120]
[400091888,1767089036659,-999.0,0.0005041,120]
[400091889,1767089036694,-10000.0,0.000505,120]
[400091890,1767089036729,-1000.0,0.00050592,120]
[400091891,1767089036762,-791.0,0.00050592,120]
[400091892,1767089036792,-170.0,0.00050685,120]
[400091893,1767089036822,-200.0,0.00050712,120]
[400091894,1767089036851,-1364.0,0.00050986,120]
[400091895,1767089036880,-627.0,0.00050986,120]
[400091896,1767089036909,-416.0,0.00050986,120]
[400091897,1767089036943,-1000.0,0.00051,120]
[400091898,1767089036976,-1000.0,0.00051,120]
[400091899,1767089037008,-99008.3770334,0.00051,120]
[400091900,1767089037039,-3000.0,0.00051,85]
[400091901,1767089037069,-200.0,0.00051,120]
[400091902,1767089037194,-3000.0,0.0005101,85]
[400091903,1767089037230,-3000.0,0.0005102,85]
[400091904,1767089037263,-3000.0,0.0005103,85]
[400091905,1767089037295,-3000.0,0.0005104,85]
[400091906,1767089037327,-3000.0,0.0005105,85]
[400091907,1767089037363,-3000.0,0.0005106,85]
[400091908,1767089037394,-169.05136184,0.00051069,85]
[400091909,1767089037425,-188.87914661,0.00051069,85]
[400091910,1767089037458,-500.0,0.00051069,85]
[400091911,1767089037488,-174.61919142,0.00051069,85]
[400091912,1767089037517,-151.0,0.00051069,85]
[400091913,1767089037548,-250.0,0.00051069,85]
[400091914,1767089037581,-500.0,0.00051069,85]
[400091915,1767089037612,-151.0,0.00051069,85]
[400091916,1767089037647,-478.75725327,0.00051069,85]
[400091917,1767089037676,-2312.83697232,0.00051069,85]
[400091918,1767089037706,-250.0,0.00051069,85]
[400091919,1767089037736,-5844.525611,0.0005107,85]
[400091920,1767089037766,-200.0,0.00051199,120]
[400091921,1767089037795,-100546.68562299,0.00051288,120]
[400091922,1767089037824,-10000.0,0.000515,120]
[400091923,1767089037854,-100000.0,0.000515,120]
[400091924,1767089037886,-999.0,0.00051506,120]
[400091925,1767089037916,-200.0,0.00051599,120]
[400091926,1767089037946,-819.89,0.000516,120]
[400091927,1767089037976,-200.0,0.00051718,120]
[400091928,1767089038006,-200.0,0.00051718,120]
[400091929,1767089038036,-305.55,0.00051945,120]
[400091930,1767089038066,-1000.0,0.00051999,120]
[400091931,1767089038095,-168.3888056,0.00051999,38]
[400091932,1767089038124,-151.0,0.00051999,38]
[400091933,1767089038153,-500.0,0.00051999,38]
[400091934,1767089038182,-151.0,0.00051999,38]
[400091935,1767089038211,-168.3888056,0.00051999,38]
[400091936,1767089038241,-151.41016056,0.00051999,38]
[400091937,1767089038272,-250.0,0.00051999,38]
[400091938,1767089038302,-500.0,0.00051999,38]
[400091939,1767089038332,-151.0,0.00051999,38]
[400091940,1767089038367,-461.67526834,0.00051999,38]
[400091941,1767089038398,-2230.315306,0.00051999,38]
[400091942,1767089038430,-250.0,0.00051999,38]
[400091943,1767089038459,-100000.0,0.00052,120]
[400091944,1767089038489,-1000.0,0.00052,120]
[400091945,1767089038518,-1000.0,0.00052,120]
[400091946,1767089038548,-300.0,0.00052,120]
[400091947,1767089038577,-7807.0,0.00052,120]
[400091948,1767089038607,-200.0,0.00052,120]
[400091949,1767089038838,151.0,0.0003112,31]
[400091950,1767089038886,151.0,0.00033,31]
[400091951,1767089038928,151.0,0.00035096,31]
[400091952,1767089055741,-578.71089724,0.00031,120]
[400091953,1767089055779,-578.71089724,0.000319,120]
[400091954,1767089055816,-578.71089724,0.000329,120]
[400091955,1767089055854,-578.71089724,0.000339,120]
[400091956,1767089055890,-578.71089724,0.000349,120]
[400091957,1767089055946,-152.0,0.00052093,120]
[400091958,1767089055980,-200000.0,0.000521,120]
[400091959,1767089056016,-10000.0,0.000525,120]
[400091960,1767089056051,-3000.0,0.00052589,120]
[400091961,1767089056087,-999.0,0.00052602,120]
[400091962,1767089056122,-3069.1156196,0.00053,120]
[400091963,1767089056154,-10000.0,0.00053,120]
[400091964,1767089056186,-1000.0,0.00053,120]
[400091965,1767089056217,-1000.0,0.00053,120]
[400091966,1767089056247,-153.0,0.00053,120]
[400091967,1767089056276,-164.0,0.00053,120]
[400091968,1767089056306,-200.0,0.00053,120]
[400091969,1767089056336,-880.53725527,0.000535,120]
[400091970,1767089056373,-153.0,0.000535,120]
[400091971,1767089056405,-999.0,0.00053698,120]
[400091972,1767089056436,-1364.0,0.00053986,120]
[400091973,1767089056465,-627.0,0.00053986,120]
[400091974,1767089056495,-416.0,0.00053986,120]
[400091975,1767089056526,-1000.0,0.00053999,120]
[400091976,1767089056556,-156.587,0.00053999,60]
[400091977,1767089056587,-151.0,0.00053999,60]
[400091978,1767089056617,-500.0,0.00053999,60]
[400091979,1767089056648,-151.0,0.00053999,60]
[400091980,1767089056679,-156.587,0.00053999,60]
[400091981,1767089056709,-151.0,0.00053999,60]
[400091982,1767089056740,-151.0,0.00053999,60]
[400091983,1767089056770,-500.0,0.00053999,60]
[400091984,1767089056801,-250.0,0.00053999,60]
[400091985,1767089056832,-500.0,0.00053999,60]
[400091986,1767089056861,-151.0,0.00053999,60]
[400091987,1767089056892,-269.09604706,0.00053999,60]
[400091988,1767089056923,-151.0,0.00053999,60]
[400091989,1767089056954,-429.318,0.00053999,60]
[400091990,1767089056985,-2074.0,0.00053999,60]
[400091991,1767089057029,-250.0,0.00053999,60]
[400091992,1767089057059,-250.0,0.00053999,60]
[400091993,1767089057088,-160.28626215,0.00053999,60]
[400091994,1767089057118,-688.6599328,0.00054,120]
[400091995,1767089057147,-1000.0,0.00054,120]
[400091996,1767089057177,-1000.0,0.00054,120]
[400091997,1767089057207,-300.0,0.00054,120]
[400091998,1767089057238,-4602.39021192,0.00054,80]
[400091999,1767089057268,-2875.1057225,0.00054,120]
[400092000,1767089057299,-200.0,0.00054,120]
[400092001,1767089057330,-153.0,0.000541,120]
[400092002,1767089057363,-151.0,0.00054192,120]
[400092003,1767089057394,-151.0,0.00054192,120]
[400092004,1767089057426,-500.0,0.00054192,120]
[400092005,1767089057457,-151.0,0.00054192,120]
[400092006,1767089057491,-151.0,0.00054192,120]
[400092007,1767089057523,-151.0,0.00054192,120]
[400092008,1767089057556,-1214.52111912,0.00054192,120]
[400092009,1767089057587,-151.0,0.00054192,120]
[400092010,1767089057618,-500.0,0.00054192,120]
[400092011,1767089057649,-250.0,0.00054192,120]
[400092012,1767089057680,-500.0,0.00054192,120]
[400092013,1767089057710,-151.0,0.00054192,120]
[400092014,1767089057739,-151.0,0.00054192,120]
[400092015,1767089057768,-151.0,0.00054192,120]
[400092016,1767089057798,-414.0,0.00054192,120]
[400092017,1767089057827,-250.0,0.00054192,120]
[400092018,1767089057855,-2000.0,0.00054192,120]
[400092019,1767089057883,-250.0,0.00054192,120]
[400092020,1767089057913,-160.0,0.00054192,120]
[400092021,1767089057943,-23707.17389228,0.00054193,120]
[400092022,1767089057973,-37717.0,0.00054194,120]
[400092023,1767089058002,-37717.0,0.00054195,120]
[400092024,1767089058031,-37717.0,0.00054196,120]
[400092025,1767089058062,-37717.0,0.00054197,120]
[400092026,1767089058092,-53550.35786251,0.000542,120]
[400092027,1767089058122,-17298.64055085,0.0005435,120]
[400092028,1767089058152,-2521.80553991,0.00054362,120]
[400092029,1767089058180,-1500.0,0.000545,120]
[400092030,1767089058210,-153.0,0.000546,120]
[400092031,1767089058239,-1000.0,0.00054794,120]
[400092032,1767089058371,-999.0,0.00054794,120]
[400092033,1767089058406,-233.58774294,0.00054794,120]
[400092034,1767089058440,-4000.0,0.00054795,120]
[400092035,1767089058472,-37717.0,0.0005489,120]
[400092036,1767089058506,-37717.0,0.00054891,120]
[400092037,1767089058540,-37717.0,0.00054892,120]
[400092038,1767089058574,-37717.0,0.00054893,120]
[400092039,1767089058613,-37717.0,0.00054894,120]
[400092040,1767089058645,-37717.0,0.00054895,120]
[400092041,1767089058675,-37717.0,0.00054896,120]
[400092042,1767089058706,-37717.0,0.00054897,120]
[400092043,1767089058737,-2000.0,0.000549,120]
[400092044,1767089058766,-1111.76394351,0.000549,120]
[400092045,1767089058796,-640.08133556,0.00054959,120]
[400092046,1767089058825,-4998.89782522,0.00055,120]
[400092047,1767089058856,-2000.0,0.00055,120]
[400092048,1767089058887,-500.0,0.00055,120]
[400092049,1767089058917,-5000.0,0.00055,60]
[400092050,1767089058947,-2331.16,0.00055,120]
[400092051,1767089058976,-100000.0,0.00055,120]
[400092052,1767089059007,-5000.0,0.00055,65]
[400092053,1767089059039,-5202.0174357,0.00055,65]
[400092054,1767089059072,-1000.0,0.00055,120]
[400092055,1767089059101,-40800.6180905,0.00055,120]
[400092056,1767089059132,-450000.0,0.00055,120]
[400092057,1767089059165,-100000.0,0.00055,120]
[400092058,1767089059198,-1500.0,0.00055,120]
[400092059,1767089059229,-850.0,0.00055,60]
[400092060,1767089059258,-251.33445995,0.00055,120]
[400092061,1767089059288,-4522.33414065,0.00055,120]
[400092062,1767089059317,-166.46292126,0.00055,120]
[400092063,1767089059351,-5915.25079122,0.00055,120]
[400092064,1767089059389,-200.0,0.00055,120]
[400092065,1767089059419,-1000.0,0.00055068,120]
[400092066,1767089059449,-153.0,0.000552,120]
[400092067,1767089059480,-1000.0,0.00055342,120]
[400092068,1767089059519,-660.80015606,0.000555,120]
[400092069,1767089059550,-1000.0,0.00055616,120]
[400092070,1767089059581,-1662.55434083,0.0005566,120]
[400092071,1767089059612,-37717.0,0.0005569,120]
[400092072,1767089059644,-37717.0,0.00055691,120]
[400092073,1767089059675,-37717.0,0.00055692,120]
[400092074,1767089059705,-37717.0,0.00055693,120]
[400092075,1767089059735,-37717.0,0.00055694,120]
[400092076,1767089059765,-37717.0,0.00055695,120]
[400092077,1767089059794,-37717.0,0.00055696,120]
[400092078,1767089059824,-37717.0,0.00055697,120]
[400092079,1767089059854,-153.0,0.000557,120]
[400092080,1767089059884,-1076.29593024,0.0005589,120]
[400092081,1767089059919,-999.0,0.0005589,120]
[400092082,1767089059951,-200.0,0.00056,120]
[400092083,1767089059980,-100000.0,0.00056,120]
[400092084,1767089060011,-200.0,0.00056,120]
[400092085,1767089060041,-2500.0,0.00056,120]
[400092086,1767089060071,-153.0,0.000563,120]
[400092087,1767089060099,-2500.0,0.000565,120]
[400092088,1767089060129,-497.0,0.000566,120]
[400092089,1767089060158,-153.0,0.000568,120]
[400092090,1767089060188,-37717.0,0.0005689,120]
[400092091,1767089060217,-37717.0,0.00056891,120]
[400092092,1767089060246,-37717.0,0.00056892,120]
[400092093,1767089060276,-37717.0,0.00056893,120]
[400092094,1767089060307,-37717.0,0.00056894,120]
[400092095,1767089060337,-37717.0,0.00056895,120]
[400092096,1767089060373,-37717.0,0.00056896,120]
[400092097,1767089060405,-37717.0,0.00056897,120]
[400092098,1767089060439,-37717.0,0.00056898,120]
[400092099,1767089060469,-2000.0,0.000569,120]
[400092100,1767089060500,-50000.0,0.000569,120]
[400092101,1767089060530,-1364.0,0.00056986,120]
[400092102,1767089060561,-627.0,0.00056986,120]
[400092103,1767089060592,-416.0,0.00056986,120]
[400092104,1767089060627,-999.0,0.00056986,120]
[400092105,1767089060658,-500.0,0.00057,120]
[400092106,1767089060695,-400.0,0.00057,120]
[400092107,1767089060731,-2000.0,0.00057,120]
[400092108,1767089060764,-3000.0,0.00057,120]
[400092109,1767089060796,-100000.0,0.00057,120]
[400092110,1767089060831,-164.84448333,0.00057,120]
[400092111,1767089060865,-200.0,0.00057,120]
[400092112,1767089060912,-153.0,0.000574,120]
[400092113,1767089060943,-37717.0,0.0005749,120]
[400092114,1767089060973,-37717.0,0.00057491,120]
[400092115,1767089061005,-37717.0,0.00057492,120]
[400092116,1767089061036,-37717.0,0.00057493,120]
[400092117,1767089061167,-37717.0,0.00057494,120]
[400092118,1767089061200,-37717.0,0.00057495,120]
[400092119,1767089061231,-37717.0,0.00057496,120]
[400092120,1767089061260,-37717.0,0.00057497,120]
[400092121,1767089061289,-37717.0,0.00057498,120]
[400092122,1767089061413,195.63268876,0.00031,120]
[400092123,1767089061465,195.63268876,0.000319,120]
[400092124,1767089061502,169.06909323,0.00031,120]
[400092125,1767089061551,195.63268876,0.000329,120]
[400092126,1767089061588,169.06909323,0.000319,120]
[400092127,1767089061626,169.06909323,0.000329,120]
[400092128,1767089061664,169.06909323,0.000339,120]
[400092146,1767089239993,284.92903015,0.0002876,120]
[400092148,1767089370180,354.0,0.00028767,120]
[400092160,1767089431592,-1000.0,0.00013,2]
[400092162,1767089431601,-237.29786326,0.00013,2]
[400092168,1767089431645,-366.70213674,0.00013,2]
[400092170,1767089431654,-245.94877895,0.00013267,2]
[400092208,1767089435048,328.6654,0.000285,120]
[400092215,1767089437748,-254.05122105,0.00013267,2]
[400092216,1767089437757,-500.0,0.00013267,2]
[400092217,1767089437767,-171.36824968,0.00013273,2]
[400092218,1767089437852,-328.63175032,0.00013273,2]
[400092219,1767089437863,-500.0,0.00013273,2]
[400092220,1767089437872,-567.585019,0.00013699,2]
[400092221,1767089437882,-555.66200372,0.00013821,2]
[400092222,1767089437891,-1000.0,0.00013821,2]
[400092223,1767089437900,-500.0,0.00014366,2]
[400092224,1767089437909,-500.0,0.00014366,2]
[400092225,1767089437918,-582.17572155,0.00014366,2]
[400092226,1767089437928,-500.0,0.00014366,2]
[400092227,1767089437937,-500.0,0.00014366,2]
[400092228,1767089437946,-500.0,0.00014366,2]
[400092229,1767089438087,-500.0,0.00014366,2]
[400092230,1767089438097,-180.32504417,0.00014366,2]
[400092231,1767089438113,-500.0,0.00014366,2]
[400092232,1767089438128,-400.24703078,0.00014366,2]
[400092233,1767089438138,-186.70278268,0.00014366,2]
[400092234,1767089438148,-25743.44235294,0.00014367,2]
[400092235,1767089438162,-5456.90151578,0.00014367,2]
[400092248,1767089439917,-2364.65743581,0.00014367,2]
[400092249,1767089439927,-1500.0,0.00014368,2]
[400092251,1767089439937,-600.0,0.00014654,2]
[400092253,1767089439947,-177.70685836,0.00014916,2]
[400092254,1767089439956,-177.0,0.00015134,2]
[400092255,1767089439966,-138.80840781,0.00016119,2]
[400092256,1767089439977,-581.19159219,0.00016119,2]
[400092257,1767089439986,-204.0,0.00017134,2]
[400092258,1767089439996,-864.0,0.00017731,2]
[400092259,1767089440005,-534.3073489,0.00019498,2]
[400092260,1767089440015,-1000.0,0.00019504,2]
[400092261,1767089440023,-567.585019,0.00020187,2]
[400092262,1767089440032,-1000.0,0.00021455,10]
[400092263,1767089440042,-244.0,0.00021455,10]
[400092264,1767089440051,-1041.66666667,0.00021892,2]
[400092265,1767089440060,-1000.0,0.000236,10]
[400092266,1767089440070,-492.0,0.000236,10]
[400092267,1767089440079,-3000.0,0.000241,2]
[400092268,1767089440089,-3000.0,0.0002411,2]
[400092269,1767089440098,-3000.0,0.0002412,2]
[400092270,1767089440108,-3000.0,0.0002413,2]
[400092271,1767089440117,-3000.0,0.0002414,2]
[400092272,1767089440126,-3000.0,0.0002415,2]
[400092273,1767089440136,-3000.0,0.0002416,2]
[400092274,1767089440145,-3000.0,0.0002417,2]
[400092275,1767089440155,-3000.0,0.0002418,2]
[400092276,1767089440164,-607.63164805,0.00024188,2]
[400092277,1767089440173,-500.0,0.00024188,2]
[400092278,1767089440183,-310.30352492,0.00024188,2]
[400092279,1767089440192,-500.0,0.00024188,2]
[400092280,1767089440201,-500.0,0.00024188,2]
[400092281,1767089440210,-500.0,0.00024188,2]
[400092282,1767089440219,-500.0,0.00024188,2]
[400092283,1767089440229,-500.0,0.00024188,2]
[400092284,1767089440238,-500.0,0.00024188,2]
[400092285,1767089440248,-500.0,0.00024188,2]
[400092286,1767089440257,-507.69670382,0.00024188,2]
[400092287,1767089440266,-3000.0,0.0002419,2]
[400092288,1767089440276,-3000.0,0.000242,2]
[400092289,1767089440285,-567.19,0.0002421,10]
[400092290,1767089440295,-3000.0,0.0002421,2]
[400092291,1767089440304,-3000.0,0.0002422,2]
[400092292,1767089440313,-709.0,0.0002422,10]
[400092293,1767089440323,-3000.0,0.0002423,2]
[400092294,1767089440333,-3000.0,0.0002424,2]
[400092295,1767089440342,-5971.048944,0.0002425,2]
[400092296,1767089440351,-38000.914578,0.00025,2]
[400092297,1767089440360,-1000.0,0.0002596,10]
[400092298,1767089440370,-791.0,0.0002596,10]
[400092299,1767089440379,-5888.0,0.00026115,2]
[400092300,1767089440388,-500.0,0.00026431,7]
[400092301,1767089440397,-417.64971886,0.00026531,4]
[400092302,1767089440407,-567.585019,0.00026676,2]
[400092303,1767089440416,-1000.0,0.000268,5]
[400092304,1767089440426,-1000.0,0.000268,10]
[400092305,1767089440436,-1000.0,0.000268,15]
[400092306,1767089440448,-189.1,0.000269,7]
[400092307,1767089440457,-3665.0,0.0002692,2]
[400092308,1767089440467,-500.0,0.0002699,5]
[400092309,1767089440476,-500.0,0.0002699,5]
[400092310,1767089440486,-500.0,0.0002699,20]
[400092311,1767089440500,-500.0,0.0002699,5]
[400092312,1767089440510,-500.0,0.0002699,20]
[400092313,1767089440522,-500.0,0.0002699,5]
[400092314,1767089440532,-500.0,0.0002699,20]
[400092315,1767089440542,-600.99893326,0.0002699,5]
[400092316,1767089440551,-500.0,0.0002699,5]
[400092317,1767089440561,-500.0,0.0002699,20]
[400092318,1767089440570,-500.0,0.0002699,5]
[400092319,1767089440579,-168.0,0.00027306,2]
[400092320,1767089440588,-168.0,0.00027499,2]
[400092321,1767089440598,-168.0,0.00027613,2]
[400092322,1767089440608,-403226.84536484,0.00027843,2]
[400092364,1767090201884,1678.31769252,0.00012771,2]
[400092365,1767090246954,456.0,0.00028767,120]
[400092394,1767090631836,-604.0,0.00013008,2]
[400092395,1767090631846,-300.0,0.00013271,2]
[400092396,1767090631855,-150.42585719,0.00013271,2]
[400092397,1767090631868,-149.57414281,0.00013271,2]
[400092398,1767090631877,-109.7688572,0.00013271,2]
[400092399,1767090631890,-190.2311428,0.00013271,2]
[400092400,1767090631899,-15692.11246334,0.00013272,2]
[400092404,1767090637870,-500.0,0.00013271,2]
[400092405,1767090637880,-180.59731438,0.00013271,2]
[400092406,1767090637889,-168.18268562,0.00013271,2]
[400092407,1767090637923,-6.59945381,0.00013271,2]
[400092408,1767090637933,-500.0,0.00013271,2]
[400092409,1767090637942,-500.0,0.00013271,2]
[400092410,1767090637951,-500.0,0.00013271,2]
[400092411,1767090637961,-500.0,0.00013271,2]
[400092412,1767090637971,-500.0,0.00013271,2]
[400092413,1767090637980,-500.0,0.00013271,2]
[400092414,1767090637990,-500.0,0.00013271,2]
[400092415,1767090637999,-500.0,0.00013271,2]
[400092416,1767090638009,-433.84674897,0.00013271,2]
[400092417,1767090638019,-500.0,0.00013271,2]
[400092418,1767090638028,-500.0,0.00013271,2]
[400092419,1767090638038,-500.0,0.00013271,2]
[400092420,1767090638048,-500.0,0.00013271,2]
[400092421,1767090638057,-500.0,0.00013271,2]
[400092423,1767090638067,-436.55956912,0.00013271,2]
[400092424,1767090638079,-500.0,0.00013271,2]
[400092425,1767090638088,-500.0,0.00013271,2]
[400092426,1767090638098,-417.44685263,0.00013271,2]
[400092428,1767090638108,-22711.95120606,0.00013272,2]
[400092429,1767090638117,-1200.0,0.00013272,2]
[400092430,1767090638126,-233.88154959,0.00013273,2]
[400092431,1767090638136,-151.88,0.00013273,2]
[400092432,1767090638147,-500.0,0.00013273,2]
[400092433,1767090638156,-500.0,0.00013273,2]
[400092434,1767090638167,-500.0,0.00013273,2]
[400092435,1767090638177,-222.52678573,0.00013273,2]
[400092436,1767090638186,-232.30181117,0.00013273,2]
[400092437,1767090638196,-500.4803021,0.00013273,2]
[400092438,1767090638206,-647.82400186,0.00013273,2]
[400092439,1767090638215,-500.0,0.00013273,2]
[400092440,1767090638225,-154.17130961,0.00013273,2]
[400092441,1767090638235,-542.5171732,0.00013273,2]
[400092442,1767090638244,-500.0,0.00013273,2]
[400092443,1767090638255,-481.1352074,0.00013273,2]
[400092444,1767090638264,-500.0,0.00013537,2]
[400092445,1767090638274,-300.0,0.00013537,2]
[400092446,1767090638283,-300.0,0.00013537,2]
[400092447,1767090638293,-300.0,0.00013537,2]
[400092448,1767090638303,-300.0,0.00013537,2]
[400092449,1767090638314,-300.0,0.00013537,2]
[400092450,1767090638323,-300.0,0.00013537,2]
[400092451,1767090638334,-300.0,0.00013537,2]
[400092452,1767090638344,-300.0,0.00013537,2]
[400092453,1767090638353,-300.0,0.00013537,2]
[400092454,1767090638362,-300.0,0.00013537,2]
[400092455,1767090638372,-300.0,0.00013537,2]
[400092456,1767090638382,-300.0,0.00013537,2]
[400092457,1767090638391,-300.0,0.00013537,2]
[400092458,1767090638401,-300.0,0.00013537,2]
[400092459,1767090638411,-300.0,0.00013537,2]
[400092460,1767090638420,-206.9363118,0.00013698,2]
[400092461,1767090638430,-500.0,0.00013698,2]
[400092462,1767090638440,-600.0,0.00013807,2]
[400092463,1767090638450,-500.0,0.00013811,2]
[400092464,1767090638459,-1000.0,0.00013821,2]
[400092465,1767090638468,-500.0,0.00013821,2]
[400092466,1767090638478,-387.70688566,0.00013821,2]
[400092467,1767090638488,-248.76844392,0.00013821,2]
[400092468,1767090638498,-420.0,0.00014549,2]
[400092469,1767090638507,-609.0,0.00014551,2]
[400092470,1767090638518,-188.88683,0.00015068,2]
[400092471,1767090638527,-177.0,0.0001514,2]
[400092472,1767090638536,-500.0,0.00015186,2]
[400092473,1767090638546,-720.0,0.00015187,2]
[400092474,1767090638556,-5584.51537942,0.00015568,2]
[400092475,1767090638566,-1763.27546867,0.00015853,2]
[400092476,1767090638575,-180.0,0.00015952,2]
[400092477,1767090638585,-3652.88189449,0.0001605,2]
[400092478,1767090638595,-864.0,0.00016706,2]
[400092479,1767090638604,-204.0,0.0001714,2]
[400092480,1767090638614,-5584.51537942,0.00017551,2]
[400092481,1767090638624,-500.0,0.00018376,2]
[400092482,1767090638634,-217.21246745,0.00018376,2]
[400092483,1767090638643,-500.0,0.00018376,2]
[400092484,1767090638653,-500.0,0.00018376,2]
[400092485,1767090638663,-500.0,0.00018376,2]
[400092486,1767090638672,-500.0,0.00018376,2]
[400092487,1767090638682,-590.9789438,0.00018376,2]
[400092488,1767090638691,-500.0,0.00018376,2]
[400092489,1767090638701,-500.0,0.00018376,2]
[400092490,1767090638711,-500.0,0.00018376,2]
[400092491,1767090638719,-500.0,0.00018376,2]
[400092492,1767090638729,-500.0,0.00018376,2]
[400092493,1767090638740,-500.0,0.00018376,2]
[400092494,1767090638749,-500.0,0.00018376,2]
[400092495,1767090638759,-270.53618591,0.00018376,2]